bitfinex/quotes_ETHUSD_20241130
["timestamp","ask_amount","ask_price","bid_price","bid_amount"]
[1732991891659,0.55,3674.7,3674.3,7.44409776]
[1732991891828,0.02700272,3674.4,3674.3,7.44409776]
[1732991892034,0.55,3674.7,3674.3,7.44409776]
[1732991892235,0.02700272,3674.4,3674.3,7.44409776]
[1732991892436,0.55,3674.7,3674.3,4.72253776]
[1732991892645,0.25406552,3674.6,3674.4,2.72147]
[1732991892830,0.25406552,3674.5,3674.4,2.72147]
[1732991893030,0.25406552,3674.5,3674.4,3.77756763]
[1732991893424,0.53977094,3674.8,3674.7,2.72131]
[1732991893932,0.254132,3674.8,3674.7,3.77740763]
[1732991894327,0.66090367,3674.8,3674.7,4.42728939]
[1732991894850,0.68811615,3674.8,3674.7,4.42728939]
[1732991895330,0.28134448,3674.8,3674.7,4.42728939]
[1732991895767,0.28134448,3674.8,3674.7,3.77740763]
[1732991899226,0.28134448,3674.8,3674.7,4.53950763]
[1732991899432,0.02721248,3674.8,3674.7,4.53950763]
[1732991899631,0.40692799,3675.5,3675.2,2.72092]
[1732991899860,0.2543426,3675.4,3675.2,2.72092]
[1732991900065,0.2543426,3675.3,3675.2,2.72092]
[1732991900269,0.2543426,3675.3,3675.2,3.77701763]
[1732991900450,0.28192843,3675.3,3675.2,4.42682639]
[1732991901445,0.02758583,3675.3,3675.2,4.42682639]
[1732991902354,0.02758583,3675.3,3675.2,5.18892639]
[1732991903160,0.95673687,3675.8,3675.5,2.72069]
[1732991903363,0.66089355,3675.7,3675.5,2.72069]
[1732991903676,0.66089355,3675.7,3675.2,4.53911763]
[1732991903677,0.25415668,3675.6,3675.3,2.72081]
[1732991903872,0.25415668,3675.5,3675.3,2.72081]
[1732991904180,0.02879389,3675.5,3675.3,2.72081]
[1732991904482,0.53611714,3675.8,3675.6,2.72062]
[1732991904674,0.40656785,3675.9,3675.8,2.72043]
[1732991904841,0.25406917,3675.9,3675.8,2.72043]
[1732991905464,0.25406917,3675.9,3675.7,2.72055]
[1732991905632,0.25406917,3675.8,3675.7,2.72055]
[1732991906658,0.28304299,3675.8,3675.7,2.72055]
[1732991908644,0.28304299,3675.8,3675.5,3.77678763]
[1732991908976,0.02897382,3675.8,3675.5,3.77678763]
[1732991909179,0.54035224,3676.0,3675.5,4.30327567]
[1732991909476,0.28286053,3675.9,3675.5,4.30327567]
[1732991909649,0.25382674,3675.8,3675.5,4.30327567]
[1732991909850,0.02903379,3675.9,3675.5,4.30327567]
[1732991910055,0.02891384,3675.7,3675.5,4.30327567]
[1732991910359,0.54035224,3676.0,3675.6,0.70241257]
[1732991910541,0.25377778,3675.9,3675.6,0.70241257]
[1732991910742,0.25377778,3675.8,3675.6,0.70241257]
[1732991910943,0.54035224,3676.0,3675.6,0.70241257]
[1732991911143,0.25377699,3675.9,3675.6,0.70241257]
[1732991911343,0.25377699,3675.8,3675.6,0.70241257]
[1732991911676,0.54035224,3676.0,3675.6,0.70241257]
[1732991911884,0.25375128,3675.9,3675.6,0.70241257]
[1732991912175,0.25375128,3675.8,3675.6,0.70241257]
[1732991912381,0.54035224,3676.0,3675.5,4.30327567]
[1732991912583,0.25374451,3675.9,3675.5,4.30327567]
[1732991912757,0.25374451,3675.8,3675.5,4.30327567]
[1732991912953,0.54035224,3676.0,3675.5,4.30327567]
[1732991913277,0.25373741,3675.9,3675.6,2.72063]
[1732991913576,0.25373193,3675.8,3675.5,1.05609763]
[1732991913760,0.54035224,3676.0,3675.5,1.05609763]
[1732991913960,0.02891384,3675.7,3675.5,1.05609763]
[1732991914592,0.02891384,3675.7,3675.2,3.7621]
[1732991914796,0.02891384,3675.7,3675.2,4.05609763]
[1732991914967,0.02891384,3675.7,3674.9,2.72114]
[1732991914968,0.55,3675.5,3674.9,2.72114]
[1732991915168,0.55,3675.5,3674.9,1.05609763]
[1732991915376,0.55,3675.3,3674.9,1.05609763]
[1732991915560,3.27087,3675.3,3674.9,1.05609763]
[1732991915762,3.27087,3675.3,3674.7,2.72129]
[1732991915763,0.02869262,3675.2,3674.7,3.77738763]
[1732991915964,0.02869262,3675.2,3674.7,4.50347939]
[1732991916702,0.02869262,3675.2,3674.9,2.72115]
[1732991916906,0.57869262,3675.2,3674.8,3.0]
[1732991917054,0.55,3675.2,3674.8,3.0]
[1732991917254,0.02863263,3675.1,3674.8,3.0]
[1732991917692,0.55,3675.3,3674.8,3.0]
[1732991917854,0.02857264,3675.0,3674.8,3.0]
[1732991918052,0.55,3675.3,3674.8,3.0]
[1732991918267,0.02851264,3674.9,3674.8,3.0]
[1732991918482,0.55689657,3675.2,3674.8,3.0]
[1732991918687,0.02851264,3674.9,3674.8,3.0]
[1732991918896,0.55689657,3675.2,3674.8,3.0]
[1732991919077,0.02851264,3674.9,3674.8,3.0]
[1732991919280,0.55689657,3675.2,3674.8,3.0]
[1732991919479,0.02851264,3674.9,3674.8,3.0]
[1732991920093,0.55689657,3675.2,3674.8,3.0]
[1732991920395,0.02851264,3674.9,3674.5,2.72144]
[1732991920566,0.55,3675.1,3674.5,0.94991276]
[1732991920772,0.02845264,3674.8,3674.7,2.72131]
[1732991920978,0.55689657,3675.2,3674.8,3.48668]
[1732991921170,0.28250209,3675.1,3674.9,1.08330621]
[1732991921374,0.02858782,3675.1,3674.9,1.08330621]
[1732991921596,0.02858782,3675.1,3674.9,3.80445621]
[1732991921801,0.02858782,3675.1,3674.9,1.08330621]
[1732991922104,0.02858782,3675.1,3674.9,1.05609763]
[1732991923569,0.25405815,3675.0,3674.9,1.05609763]
[1732991923774,0.28258598,3675.0,3674.9,1.08330655]
[1732991923974,0.02852783,3675.0,3674.9,1.08330655]
[1732991924174,0.55689657,3675.2,3674.9,1.08330655]
[1732991924473,0.28267231,3675.1,3674.9,1.05609763]
[1732991924674,0.25408449,3675.0,3674.9,1.05609763]
[1732991925181,0.28266712,3675.0,3674.9,1.05609763]
[1732991927501,0.28266712,3675.0,3674.9,3.77725763]
[1732991927917,0.02858263,3675.0,3674.9,3.77725763]
[1732991928236,0.28277298,3675.0,3674.9,3.77725763]
[1732991935127,0.02858263,3675.0,3674.9,3.77725763]
[1732991935339,0.28277885,3675.0,3674.9,3.77725763]
[1732991935510,0.25419622,3675.0,3674.9,3.77725763]
[1732991935829,0.28261031,3675.0,3674.9,3.77725763]
[1732991936326,0.28263009,3675.0,3674.9,3.77725763]
[1732991936532,0.02841409,3675.0,3674.9,3.77725763]
[1732991936990,0.40677362,3675.5,3674.9,3.77725763]
[1732991936991,0.40677362,3675.4,3674.9,1.78522129]
[1732991937192,0.02830611,3675.0,3674.9,5.72116]
[1732991937390,0.25427874,3675.6,3675.5,2.72066]
[1732991937946,0.28291045,3675.6,3675.5,2.72066]
[1732991938310,0.28290876,3675.6,3675.5,2.72066]
[1732991938727,0.28293446,3675.6,3675.5,2.72066]
[1732991938905,0.28293446,3675.6,3675.5,3.45331176]
[1732991940489,0.25430275,3675.6,3675.5,3.45331176]
[1732991941294,0.54008736,3675.7,3675.6,2.72064]
[1732991941491,0.79448572,3675.7,3675.6,2.72064]
[1732991941830,0.79448572,3675.7,3675.4,2.72079]
[1732991942132,0.25439836,3675.6,3675.4,2.72079]
[1732991942342,0.54008736,3675.7,3675.4,2.72079]
[1732991942634,0.54008736,3675.7,3674.9,5.72109]
[1732991942635,0.55,3675.5,3674.9,3.0]
[1732991942804,0.25432133,3675.4,3674.6,3.77746763]
[1732991943006,0.80432133,3675.3,3674.7,3.77734763]
[1732991943192,0.25432133,3675.2,3674.6,2.72137]
[1732991943391,0.25432133,3675.2,3674.4,0.8289]
[1732991943392,2.72113,3675.0,3674.4,0.8289]
[1732991943621,0.8043345,3674.9,3674.3,1.05609763]
[1732991943845,0.55,3674.9,3674.4,2.72151]
[1732991943992,0.254323,3674.8,3674.4,2.72151]
[1732991944220,0.55,3675.0,3674.4,2.72151]
[1732991944420,0.25434906,3674.9,3674.4,2.72151]
[1732991944626,0.80434906,3674.8,3674.4,2.72151]
[1732991944867,3.27124,3674.8,3674.3,3.0]
[1732991945223,0.53273245,3674.6,3674.3,3.0]
[1732991945423,0.53273245,3674.6,3673.8,3.55086]
[1732991945424,3.52578828,3674.5,3673.8,2.72193]
[1732991945649,0.25429828,3674.4,3673.8,2.72193]
[1732991945823,0.80429828,3674.3,3673.8,2.72193]
[1732991946159,0.55,3674.2,3673.6,2.7221]
[1732991946361,3.27181,3674.1,3673.5,1.05609763]
[1732991946520,3.27181,3674.1,3673.5,3.80549636]
[1732991946721,0.55,3673.9,3673.5,3.80549636]
[1732991947154,0.55,3674.2,3673.5,3.80549636]
[1732991947366,0.80403783,3674.1,3673.5,3.80549636]
[1732991947551,0.55,3674.1,3673.5,3.77827763]
[1732991948068,0.55,3674.1,3673.6,3.0]
[1732991948220,0.55,3673.9,3673.3,3.55124]
[1732991948420,0.55,3673.9,3673.3,2.72234]
[1732991948865,0.55,3673.9,3673.2,1.05609763]
[1732991948866,0.55,3674.0,3673.4,2.72226]
[1732991949036,0.25384164,3673.9,3673.4,2.72226]
[1732991949232,0.55,3674.0,3673.4,2.72226]
[1732991949425,0.55,3674.0,3673.5,0.02721876]
[1732991949625,0.55,3674.0,3673.4,3.77835763]
[1732991950423,3.27184,3674.0,3673.4,1.05609763]
[1732991950624,3.27199,3673.8,3673.3,3.0]
[1732991950824,3.27199,3673.8,3673.3,2.72228]
[1732991950825,0.55,3673.8,3673.3,2.72228]
[1732991951024,3.36179835,3674.0,3673.3,2.72228]
[1732991951025,0.55,3673.9,3673.3,2.72228]
[1732991951259,1.09811006,3673.9,3673.3,2.72228]
[1732991951762,3.82001006,3673.9,3673.3,2.72228]
[1732991952128,1.09811006,3673.9,3673.3,2.72228]
[1732991953534,1.09811006,3673.9,3673.3,3.77837763]
[1732991954065,3.82002006,3673.9,3673.3,4.05609763]
[1732991954763,1.09811006,3673.9,3673.3,3.77843763]
[1732991955448,1.09811006,3673.9,3673.4,2.72226]
[1732991955869,1.09811006,3673.9,3673.5,1.05609763]
[1732991956071,1.09811006,3673.9,3673.7,2.72204]
[1732991956072,0.54811006,3673.9,3673.7,2.72204]
[1732991956672,2.72139,3674.6,3673.9,2.72188]
[1732991957477,2.97459412,3674.6,3673.9,2.72188]
[1732991957780,2.72139,3674.6,3673.9,2.72188]
[1732991957959,0.25320493,3674.8,3674.1,2.72172]
[1732991958162,0.55,3674.3,3674.2,2.72168]
[1732991958882,0.55,3674.3,3674.0,3.48402]
[1732991960187,0.55,3674.1,3672.7,0.7622]
[1732991960338,0.55,3674.3,3673.3,3.0]
[1732991960339,2.72195,3673.9,3673.3,3.0]
[1732991960687,0.55,3673.8,3673.4,2.72227]
[1732991960838,0.55,3674.0,3673.4,2.72227]
[1732991961038,0.877176,3674.0,3673.4,2.72227]
[1732991961273,3.599006,3674.0,3673.4,2.72227]
[1732991961742,3.599006,3674.0,3673.2,2.72239]
[1732991962084,0.55,3673.8,3673.3,3.0]
[1732991964486,2.72214,3673.6,3673.0,2.72256]
[1732991964645,0.55,3673.5,3672.9,3.0]
[1732991964986,0.55,3673.5,3672.9,5.72263]
[1732991965182,0.55,3673.5,3673.0,2.72255]
[1732991965679,3.27221,3673.5,3672.8,2.72265]
[1732991965885,3.0818786,3673.8,3672.9,2.72259]
[1732991965886,0.55,3673.7,3672.9,2.72259]
[1732991966083,3.27205,3673.7,3673.1,2.72248]
[1732991966250,3.94014746,3673.7,3673.1,2.72248]
[1732991966864,0.55,3673.5,3672.9,2.72259]
[1732991968701,0.55,3673.5,3673.0,2.72255]
[1732991968904,0.55,3673.5,3672.8,5.72267]
[1732991969261,0.55,3673.3,3672.8,5.72267]
[1732991969903,0.55,3673.3,3672.9,2.7226]
[1732991970706,0.55,3673.3,3673.0,2.72256]
[1732991971407,0.55171699,3673.4,3673.2,2.7224]
[1732991973065,0.55171699,3673.4,3673.0,2.72252]
[1732991974609,0.55,3673.3,3672.6,3.0]
[1732991974769,3.27234,3673.3,3672.8,3.0]
[1732991975262,0.55,3673.1,3672.8,3.0]
[1732991975466,3.27234,3673.3,3672.8,3.0]
[1732991975675,0.55,3673.1,3672.8,3.0]
[1732991976377,0.55,3673.2,3672.8,3.0]
[1732991977118,0.55,3673.0,3672.8,3.0]
[1732991977469,0.55,3673.2,3672.8,3.0]
[1732991977674,0.55,3673.0,3672.6,3.0]
[1732991978223,0.55,3673.1,3672.6,3.0]
[1732991978418,0.55,3673.1,3672.7,3.0]
[1732991978920,0.55,3673.3,3672.7,5.72276]
[1732991979121,0.55,3673.1,3672.7,5.72276]
[1732991979521,0.55,3673.3,3672.7,5.72276]
[1732991979852,0.55,3673.1,3672.8,2.72271]
[1732991980361,0.55,3673.3,3672.6,5.72279]
[1732991980656,0.55,3673.1,3672.6,5.72279]
[1732991980857,0.25405141,3673.2,3672.6,5.72279]
[1732991980858,0.55,3673.2,3672.6,5.72279]
[1732991981069,0.55,3673.2,3672.7,2.72278]
[1732991981465,0.55,3673.2,3672.8,3.0]
[1732991981761,0.55,3673.3,3672.8,5.72266]
[1732991981946,0.55,3673.3,3672.9,2.72257]
[1732991982544,0.55,3673.3,3672.8,3.0]
[1732991982752,0.55,3673.1,3672.6,5.75007541]
[1732991983060,0.55,3673.1,3672.8,2.72268]
[1732991983259,0.55171699,3673.4,3672.8,2.72268]
[1732991983260,0.55,3673.3,3672.8,2.72268]
[1732991983818,0.55,3673.1,3672.7,2.72279]
[1732991984046,0.55,3673.1,3672.5,2.72293]
[1732991984245,0.55,3673.3,3672.8,2.72271]
[1732991984432,0.55,3673.1,3672.8,2.72271]
[1732991984632,0.55,3673.3,3672.8,2.72271]
[1732991984857,0.55,3673.1,3672.8,2.72271]
[1732991985458,0.55,3673.3,3672.8,2.72271]
[1732991985672,0.55,3673.1,3672.8,2.72271]
[1732991986237,0.55,3673.3,3672.8,2.72271]
[1732991986470,0.55,3673.1,3672.8,2.72271]
[1732991986674,0.55,3673.3,3672.8,2.72271]
[1732991986971,0.55,3673.1,3672.8,2.72271]
[1732991987353,0.55,3673.3,3672.8,2.72271]
[1732991987538,0.55,3673.1,3672.8,2.72271]
[1732991987739,0.55,3673.3,3672.8,2.72271]
[1732991987971,0.25390067,3673.2,3672.8,2.72271]
[1732991988144,0.55,3673.3,3672.8,2.72271]
[1732991988350,0.55,3673.1,3672.8,2.72271]
[1732991988776,0.55,3673.3,3672.8,2.72271]
[1732991988979,0.55,3673.1,3672.8,2.72271]
[1732991989182,0.55,3673.3,3672.8,2.72271]
[1732991989478,0.55,3673.1,3672.9,2.72262]
[1732991989847,0.55,3673.3,3673.0,2.72256]
[1732991990171,0.55,3673.1,3673.0,2.72256]
[1732991990381,0.8041168,3673.1,3673.0,2.72256]
[1732991994248,0.55171699,3673.4,3673.0,2.72256]
[1732991994483,0.55,3673.3,3673.0,2.72256]
[1732991997198,0.25436865,3673.2,3673.0,2.72256]
[1732991997894,0.25436865,3673.2,3672.9,2.72263]
[1732991998052,0.25436865,3673.2,3672.7,3.7796767]
[1732991998395,0.25436865,3673.2,3672.8,2.7227]
[1732991998881,0.25436865,3673.2,3672.7,1.0569067]
[1732991999082,0.25436865,3673.2,3672.9,2.72263]
[1732991999866,0.55,3673.3,3672.9,2.72263]
[1732992000267,0.55,3673.3,3673.0,2.72256]
[1732992002259,0.25442446,3673.2,3673.0,2.72256]
[1732992002568,0.25442446,3673.1,3673.0,2.72256]
[1732992003781,0.55,3673.0,3672.6,2.72284]
[1732992003989,0.25442446,3672.9,3672.4,5.72296]
[1732992004185,0.25442446,3672.8,3672.4,5.72296]
[1732992004493,0.25442446,3672.7,3672.4,5.72296]
[1732992004664,0.25442446,3672.7,3671.7,2.72346]
[1732992004665,0.55,3672.6,3671.8,0.8312]
[1732992004865,0.25447184,3672.5,3672.0,2.72328]
[1732992005065,0.80447184,3672.4,3672.0,2.72328]
[1732992005254,0.25445559,3672.3,3671.8,1.02001067]
[1732992005457,0.55,3672.6,3672.0,2.72327]
[1732992005702,0.25430063,3672.5,3672.0,2.72327]
[1732992005996,0.55,3672.3,3672.0,2.72327]
[1732992006204,0.25428578,3672.2,3672.0,2.72327]
[1732992006502,0.55,3672.3,3672.0,2.72327]
[1732992006683,0.55,3672.5,3671.5,3.8312]
[1732992006989,0.55,3672.3,3671.5,0.8312]
[1732992007197,0.80414836,3672.2,3672.1,2.72323]
[1732992007366,0.55,3672.2,3672.1,2.72323]
[1732992007758,0.55,3672.3,3671.8,1.0569067]
[1732992007995,0.55,3672.3,3672.2,2.72316]
[1732992008298,0.40633194,3672.8,3672.7,2.72279]
[1732992008457,0.40635743,3673.2,3672.8,2.72271]
[1732992008789,0.25397276,3673.1,3672.8,2.72271]
[1732992008999,0.25397276,3673.0,3672.8,2.72271]
[1732992009179,0.40635743,3673.3,3673.0,2.72256]
[1732992009371,0.25397962,3673.2,3672.7,0.8312]
[1732992009566,1.34194938,3673.1,3672.8,2.72267]
[1732992009765,1.08796976,3673.1,3672.8,2.72267]
[1732992010401,1.08796976,3673.1,3672.9,2.72264]
[1732992010693,1.08796976,3673.1,3672.7,0.8312]
[1732992010999,1.08796976,3673.1,3672.8,2.72269]
[1732992011692,1.08796976,3673.1,3672.7,0.8312]
[1732992012006,1.08796976,3673.1,3672.7,3.55397]
[1732992012360,0.25413707,3673.0,3672.6,2.72286]
[1732992012567,1.08796976,3673.1,3672.6,2.72286]
[1732992012873,0.55,3672.9,3672.5,3.8312]
[1732992013203,0.55,3673.0,3672.7,2.72278]
[1732992014198,0.55,3673.0,3672.9,2.72264]
[1732992014383,0.53796976,3673.1,3673.0,2.72257]
[1732992014568,1.34211156,3673.1,3673.0,2.72257]
[1732992014763,1.08796976,3673.1,3673.0,2.72257]
[1732992015716,1.34212339,3673.1,3672.8,2.72268]
[1732992015871,1.08796976,3673.1,3672.8,2.72268]
[1732992017504,1.08796976,3673.1,3672.9,2.72263]
[1732992017698,1.08796976,3673.1,3672.7,2.72278]
[1732992017895,1.08796976,3673.1,3672.8,2.72269]
[1732992019678,1.08796976,3673.1,3672.6,2.7228]
[1732992019877,1.08796976,3673.1,3672.5,6.55412]
[1732992019878,0.55,3673.0,3672.5,6.55407]
[1732992020112,0.55,3673.0,3672.5,5.72287]
[1732992020408,0.55,3672.8,3672.2,2.7231]
[1732992020612,3.27277,3672.8,3672.0,3.0]
[1732992020830,0.55,3672.6,3672.1,2.72319]
[1732992021513,0.55,3672.7,3672.1,2.72319]
[1732992021679,0.55,3672.5,3672.0,1.0569067]
[1732992021873,0.55,3672.5,3672.2,2.72315]
[1732992022292,0.55,3672.7,3672.2,2.72315]
[1732992022514,0.55,3672.5,3672.2,2.72315]
[1732992022713,0.55,3672.7,3672.2,2.72315]
[1732992023012,0.55,3672.5,3672.2,2.72315]
[1732992023232,0.55,3672.7,3672.2,2.72315]
[1732992023436,0.55,3672.3,3671.9,3.0]
[1732992023636,0.55,3672.3,3671.8,2.72342]
[1732992023790,3.27295,3672.5,3671.9,2.72338]
[1732992023993,0.55,3672.3,3672.0,2.7233]
[1732992024523,0.55,3672.4,3672.0,2.7233]
[1732992024699,0.55,3672.4,3671.8,6.7803167]
[1732992025291,0.55,3672.4,3672.0,2.72331]
[1732992027532,0.55,3672.4,3672.2,2.72314]
[1732992027722,0.55,3672.4,3672.1,2.72316]
[1732992028025,0.55,3672.4,3672.2,2.72316]
[1732992028209,0.55,3672.4,3672.0,3.7802067]
[1732992028532,0.55,3672.4,3672.1,2.72322]
[1732992029600,0.55,3672.4,3672.0,3.7801667]
[1732992031955,0.55,3672.2,3672.0,3.7801667]
[1732992032139,0.04898272,3672.1,3672.0,3.7801667]
[1732992032326,0.55,3672.4,3672.0,2.72326]
[1732992032513,0.55,3672.2,3672.0,2.72326]
[1732992032829,0.04735259,3672.1,3672.0,2.72326]
[1732992033212,0.55,3672.4,3672.0,2.72326]
[1732992033649,0.55,3672.2,3672.0,2.72326]
[1732992033950,0.04735259,3672.1,3672.0,2.72326]
[1732992036216,0.04735259,3672.1,3671.8,2.72345]
[1732992037030,0.04735259,3672.1,3671.9,2.72336]
[1732992037229,0.04735259,3672.1,3671.6,2.72358]
[1732992037559,0.55,3672.0,3671.6,2.72358]
[1732992037778,0.04723867,3671.9,3671.4,2.72374]
[1732992038064,0.55,3671.8,3671.4,2.72374]
[1732992038324,0.55,3671.8,3671.2,2.72388]
[1732992038504,0.55,3671.6,3671.0,2.72404]
[1732992038872,0.55,3671.4,3671.0,2.72404]
[1732992039119,0.55,3671.4,3670.8,2.72419]
[1732992039279,0.55,3671.2,3670.8,2.72419]
[1732992039486,0.55,3671.2,3670.9,2.72411]
[1732992039702,0.04672157,3671.1,3670.9,2.72411]
[1732992039907,0.55,3671.0,3670.9,2.72411]
[1732992040221,0.59667022,3671.0,3670.9,2.72411]
[1732992040523,0.59667022,3671.0,3670.8,2.72414]
[1732992042472,0.59667022,3671.0,3670.6,2.72433]
[1732992042724,3.32078022,3671.0,3670.3,5.72451]
[1732992042884,3.32078022,3671.0,3670.8,2.72419]
[1732992042885,0.59667022,3671.0,3670.8,2.72419]
[1732992043789,0.59667022,3671.0,3670.4,1.0569067]
[1732992043790,0.59667022,3671.0,3670.6,2.7243]
[1732992044192,0.55,3671.0,3670.6,2.7243]
[1732992044503,0.59645177,3670.9,3670.6,2.7243]
[1732992046218,0.59645177,3670.9,3670.7,2.72427]
[1732992048119,0.55,3670.9,3670.8,2.7242]
[1732992049789,0.55,3671.1,3670.6,2.72433]
[1732992049993,0.55,3671.3,3670.7,2.72422]
[1732992050288,0.55,3670.9,3670.8,2.72418]
[1732992050692,0.59649461,3670.9,3670.8,2.72418]
[1732992052908,0.55,3670.9,3670.8,2.72418]
[1732992053294,0.59649461,3670.9,3670.8,2.72418]
[1732992053791,0.55,3670.9,3670.8,2.72418]
[1732992054544,0.55,3671.1,3670.5,2.72442]
[1732992054821,0.55,3670.9,3670.5,2.72442]
[1732992055115,0.04644931,3670.8,3670.5,2.72442]
[1732992055321,0.55,3670.7,3670.5,2.72442]
[1732992055684,0.55,3671.0,3670.5,2.72442]
[1732992055881,0.55,3671.0,3670.3,2.72457]
[1732992055882,0.55,3671.0,3670.6,2.72433]
[1732992056127,0.55,3670.8,3670.6,2.72433]
[1732992056282,0.04639795,3670.7,3670.6,2.72433]
[1732992056489,0.59639795,3670.7,3670.6,2.72433]
[1732992056990,0.55,3670.6,3670.3,2.72457]
[1732992057432,0.55,3670.4,3670.3,2.72457]
[1732992057790,0.59511741,3670.4,3670.3,2.72457]
[1732992060321,1.15263356,3670.4,3670.3,2.72457]
[1732992067643,0.55,3670.3,3670.1,2.72471]
[1732992067999,0.59491334,3670.2,3670.1,2.72471]
[1732992070365,0.59491334,3670.2,3669.9,2.72486]
[1732992070570,0.55,3670.1,3669.7,3.52261]
[1732992070892,3.28202615,3670.4,3669.7,2.72496]
[1732992070893,0.55,3669.9,3669.7,2.72496]
[1732992071382,0.04397406,3669.8,3669.7,2.72496]
[1732992071585,0.55,3670.2,3669.7,2.72496]
[1732992071769,0.59411613,3670.1,3670.0,2.72478]
[1732992072176,0.55,3670.0,3669.6,2.72508]
[1732992072670,0.55,3669.8,3669.6,2.72508]
[1732992072988,0.04389841,3669.7,3669.6,2.72508]
[1732992073289,0.55,3670.1,3669.6,2.72508]
[1732992073456,0.95861595,3670.1,3669.7,2.725]
[1732992073672,0.95861595,3670.1,3669.5,2.72511]
[1732992073844,2.72481,3670.0,3669.3,2.72528]
[1732992074153,0.55,3669.9,3669.3,2.72528]
[1732992074578,0.55,3669.7,3669.3,2.72528]
[1732992075093,0.93215172,3669.7,3668.8,0.8332]
[1732992075246,0.55,3669.5,3669.1,2.72545]
[1732992075446,0.55,3669.5,3669.3,2.7253]
[1732992075676,0.59372516,3669.4,3669.3,2.7253]
[1732992075926,0.55,3669.3,3669.1,2.72545]
[1732992076221,0.04362233,3669.2,3669.1,2.72545]
[1732992076425,0.59362233,3669.2,3669.1,2.72545]
[1732992076601,0.55,3669.2,3669.1,2.72545]
[1732992076803,0.59350109,3669.2,3669.1,2.72545]
[1732992077623,0.55,3669.1,3668.5,2.72586]
[1732992078229,0.55,3668.9,3668.5,2.72586]
[1732992078586,0.55,3668.7,3668.3,3.50385]
[1732992078900,0.55,3668.7,3668.4,2.72592]
[1732992079485,0.55,3668.5,3668.4,5.72592]
[1732992079936,0.5933695,3668.5,3668.4,5.72592]
[1732992080117,0.5933695,3668.5,3668.4,6.7828267]
[1732992080321,0.55,3668.5,3668.4,6.7828267]
[1732992083728,0.55,3668.5,3668.4,2.72592]
[1732992084526,0.55,3668.5,3668.2,2.72611]
[1732992084929,0.55,3668.3,3668.2,2.72611]
[1732992085293,0.54627975,3668.6,3668.4,2.72594]
[1732992085294,0.55,3668.5,3668.4,2.72594]
[1732992086005,0.59318653,3668.5,3668.4,2.72594]
[1732992086805,0.59318653,3668.5,3668.1,1.0569067]
[1732992087028,0.55,3668.5,3668.3,2.72605]
[1732992087224,0.55,3668.5,3668.4,2.72598]
[1732992088791,0.55,3668.5,3668.2,2.72613]
[1732992089131,0.55,3668.5,3668.3,2.72604]
[1732992089631,0.5931351,3668.4,3668.3,2.72604]
[1732992090315,0.55,3668.3,3668.1,1.0569067]
[1732992090505,0.55,3668.3,3668.2,2.72612]
[1732992090709,0.55,3668.5,3668.2,2.72612]
[1732992091315,0.55,3668.5,3668.3,2.72604]
[1732992092535,0.55,3668.5,3668.1,3.7830967]
[1732992092733,0.55,3668.5,3668.4,2.72598]
[1732992093191,0.55,3668.5,3668.2,2.7261]
[1732992096214,0.55,3668.5,3668.3,2.72605]
[1732992097453,0.55,3668.5,3668.1,3.7830967]
[1732992098016,0.55,3668.5,3668.2,2.72611]
[1732992098407,0.55,3668.5,3668.3,2.72604]
[1732992100739,0.55,3668.5,3668.1,1.0569067]
[1732992100978,0.55,3668.5,3668.2,2.72612]
[1732992101110,0.55,3668.5,3668.0,2.72627]
[1732992101313,1.20477698,3668.5,3667.8,5.72637]
[1732992102115,1.20477698,3668.5,3667.9,2.72635]
[1732992102515,1.20477698,3668.5,3667.9,3.7832567]
[1732992103742,1.20477698,3668.5,3668.0,2.72627]
[1732992104226,0.54627975,3668.6,3668.3,0.804]
[1732992104427,0.54627975,3668.6,3668.5,2.7259]
[1732992104941,0.54627975,3668.6,3668.4,2.72598]
[1732992105650,0.55,3668.5,3668.4,2.72598]
[1732992108170,0.59158284,3668.5,3668.4,2.72598]
[1732992112549,0.59158284,3668.5,3668.2,2.72612]
[1732992112746,0.59158284,3668.5,3668.3,2.72603]
[1732992113476,1.64848954,3668.5,3667.5,0.804]
[1732992113719,0.55,3668.3,3667.7,2.72649]
[1732992114025,0.55,3668.3,3667.5,2.72664]
[1732992114168,3.25954531,3668.4,3667.5,2.72664]
[1732992114169,0.55,3668.1,3667.5,2.72664]
[1732992114566,0.55,3667.9,3667.5,2.72664]
[1732992114975,0.55,3667.7,3667.5,2.72664]
[1732992115168,0.55,3667.7,3667.1,0.804]
[1732992115169,0.55,3667.7,3667.2,2.72685]
[1732992115421,0.55,3667.5,3667.2,2.72685]
[1732992115582,0.55,3667.5,3667.0,2.72698]
[1732992115781,0.55,3667.3,3667.0,2.72698]
[1732992115998,0.04065924,3667.2,3667.0,2.72698]
[1732992116312,0.55,3667.1,3667.0,2.72698]
[1732992116612,0.59060777,3667.1,3666.9,3.0]
[1732992116912,0.55,3667.3,3666.9,3.0]
[1732992117305,0.55,3667.1,3666.9,3.0]
[1732992117687,0.55,3667.1,3666.9,5.72708]
[1732992117688,0.59054157,3667.0,3666.9,5.72708]
[1732992117997,0.55,3667.0,3666.9,5.72708]
[1732992118180,0.55,3667.3,3666.9,3.0]
[1732992118381,0.55,3667.3,3666.9,5.72704]
[1732992118580,0.55,3667.1,3667.0,2.72702]
[1732992118816,0.59059304,3667.1,3667.0,2.72702]
[1732992119423,0.55,3667.1,3667.0,2.72702]
[1732992119619,0.55,3667.3,3667.1,2.72692]
[1732992119831,0.04063477,3667.2,3667.1,2.72692]
[1732992120131,0.55,3667.2,3667.1,2.72692]